Cogmind - Beta 14 @@@ ROGUE MODE // 2024.09.28 @ 13:04:12 Player: Erucus Result: Destroyed by G-34 Mercenary with Small Laser Performance ------------- Evolutions (1) 500 Regions Visited (2) 400 Robots Destroyed (23) 115 Value Destroyed (306) 306 Prototype IDs (0) 0 Alien Tech Used (0) 0 Bonus (0) 0 TOTAL SCORE: 1321 Bonus ------- None Cogmind --------- Core Integrity 0/400 Matter 208/300 Energy 99/100 System Corruption 0% Temperature Cool (6) Movement Core (700) Ox13 Location -9/Materials Parts ------- > --- POWER (2) -------- (None) > --- PROPULSION (2) --- (None) > --- UTILITY (2) ------ High-capacity Storage Unit > --- WEAPON (3) ------- (None) > --- INVENTORY (20) --- (None) Peak State ------------ > --- POWER ------------ Light Ion Engine > --- PROPULSION ------- Flight Unit Flight Unit > --- UTILITY ---------- High-capacity Storage Unit Improved Terrain Scanner > --- WEAPON ----------- Light Assault Rifle Mini Grenade Launcher > --- INVENTORY -------- Heat Sink [Rating: 10] Favorites ----------- Power Light Ion Engine Engine Light Ion Engine Propulsion Flight Unit Leg Aluminum Leg Flight Unit Flight Unit Utility Heat Sink Device Heat Sink Storage High-capacity Storage Unit Weapon Light Assault Rifle Energy Gun Small Laser Ballistic Gun Light Assault Rifle Launcher Mini Grenade Launcher Build | -11 -10 -9 ------- Run | Yrd Mat Mat Slots Evolved 2 | . . 2 Power 1 | . . 1 Propulsion . | . . . Utility . | . . . Weapon 1 | . . 1 Parts Attached 15 | 7 3 5 Power 1 | 1 . . Engine 1 | 1 . . Core . | . . . Reactor . | . . . Propulsion 4 | 2 2 . Treads . | . . . Leg 2 | 2 . . Wheel . | . . . Hover . | . . . Flight 2 | . 2 . Utility 5 | 2 . 3 Device 4 | 2 . 2 Storage 1 | . . 1 Processor . | . . . Hackware . | . . . Protection . | . . . Artifact . | . . . Weapon 5 | 2 1 2 Energy Gun 1 | 1 . . Energy Cannon . | . . . Ballistic Gun 2 | 1 . 1 Ballistic Cannon . | . . . Launcher 2 | . 1 1 Special Weapon . | . . . Impact Weapon . | . . . Slashing Weapon . | . . . Piercing Weapon . | . . . Special Melee Weapon . | . . . Unidentified Prototypes . | . . . Parts Lost 6 | . . 6 Power 1 | . . 1 Propulsion 2 | . . 2 Utility 1 | . . 1 Weapon 2 | . . 2 Highest Loss Streak 3 | . . 3 To Critical Strikes . | . . . Average Slot Usage (%) 64 | . 89 56 Engine 7 | . 14 4 Leg 1 | . 5 . Flight 13 | . 22 10 Device 14 | . 28 10 Storage 8 | . . 10 Ballistic Gun 8 | . 4 9 Launcher 10 | . 11 10 Peak Build Rating 10 | 9 9 10 Average Rating 6 | 5 8 6 On Entrance 5 | . 9 8 Naked Turns . | . . . Heaviest Build 46 | 7 9 46 Greatest Support 20 | 20 8 8 Greatest Overweight (x) 14 | 2 2 14 Average Overweight (x) 1 | . . 6 Largest Inventory Capacity 20 | 5 5 20 Average Capacity 14 | 5 5 19 Most Carried 5 | 3 5 2 Average Carried . | 1 1 . Final Capacity 20 | 5 5 20 Final Carried 2 | 2 1 . Class Distribution -------------------- 100% | Mutant Dominant Class ---------------- Mutant | -10/Materials Mutant | -9/Materials Resources | -11 -10 -9 ----------- Run | Yrd Mat Mat Matter Collected 412 | 278 27 107 Remotely . | . . . Salvage Created 577 | 100 71 406 Parts 39 | 5 10 24 Haulers Intercepted 1 | . . 1 Recyclers Shooed 1 | . . 1 Parts Field Recycled . | . . . Retrieved Matter . | . . . Parts Self-Destructed . | . . . Prevented . | . . . Kills | -11 -10 -9 ------- Run | Yrd Mat Mat Combat Hostiles Destroyed 10 | 1 3 6 Guns 2 | 1 . 1 AOE 8 | . 3 5 Classes Destroyed 8 | 3 2 3 Worker 4 | 1 2 1 Builder 2 | . 1 1 Tunneler 3 | 2 1 . Hauler 1 | . . 1 Recycler 3 | . . 3 Swarmer 5 | . 3 2 Grunt 4 | 1 . 3 Sentry 1 | . . 1 Best Kill Streak 6 | 3 6 4 Combat Bots Only 3 | 1 3 2 Max Kills in Single Turn 3 | 1 2 3 Gunslinging . | . . . Exploded 2 | . 2 2 Melee . | . . . Uniques/NPCs Destroyed . | . . . Combat | -11 -10 -9 -------- Run | Yrd Mat Mat Hostile Shots Fired 87 | 2 5 80 Missed 22 | . 3 19 Damage Taken 833 | 21 69 743 Core 426 | . 18 408 Absorbed by Shields . | . . . Core Remaining (%) 96 | 100 92 . Volleys Fired 33 | 8 8 17 Largest 2 | 2 2 2 Hottest 60 | 60 50 50 Shots Fired 48 | 16 9 23 Gun 32 | 16 1 15 Cannon . | . . . Launcher 16 | . 8 8 Special . | . . . Kinetic 24 | 8 1 15 Thermal 8 | 8 . . Explosive 16 | . 8 8 Electromagnetic . | . . . Robot Hit Streak 6 | 6 3 3 Robot Miss Streak 3 | 1 1 3 Penetration Max . | . . . Secondary Targets . | . . . Shots Hit Robots 26 | 10 5 11 Core Hits 33 | 6 9 18 Critical Kills . | . . . Critical Parts Destroyed . | . . . Critical Strikes . | . . . Melee Attacks . | . . . Impact . | . . . Slashing . | . . . Piercing . | . . . Sneak Attacks . | . . . Combat Hostiles . | . . . Follow-up Attacks . | . . . Damage Inflicted 969 | 89 293 587 Guns 144 | 89 . 55 Cannons . | . . . Explosions 825 | . 293 532 Melee . | . . . Ramming . | . . . Kinetic 102 | 47 . 55 Thermal 42 | 42 . . Explosive 825 | . 293 532 Electromagnetic . | . . . Impact . | . . . Slashing . | . . . Piercing . | . . . Highest Corruption . | . . . Average Corruption . | . . . Corruption Purged . | . . . Corruption Blocked . | . . . Overload Shots . | . . . Overflow Damage 14 | . . 14 Projectiles . | . . . Explosions 14 | . . 14 Melee . | . . . Knockbacks . | . . . Impact . | . . . Kinetic . | . . . Secondary . | . . . Self-Inflicted Damage 82 | . 39 43 Shots 4 | . 2 2 Rammed . | . . . Targets Rammed . | . . . Kicked . | . . . Crushed . | . . . Highest Temperature 32 | 32 . . Average Temperature 16 | 16 . . Received Heat Transfer 315 | 12 . 303 Siege Activations . | . . . Robots Corrupted . | . . . Combat Hostiles . | . . . Parts Fried . | . . . Impact Corruptions . | . . . Robots Melted . | . . . Combat Hostiles . | . . . Parts Melted . | . . . Heat Transferred 100 | 100 . . Parts Sabotaged . | . . . Parts Stolen . | . . . Parts Stripped . | . . . Power Chain Reactions . | . . . Alert | -11 -10 -9 ------- Run | Yrd Mat Mat Peak Influence 182 | 35 173 182 Initial 72 | . 22 72 Average 82 | 16 110 94 Maximum Alert Level . | . . . Low Security (%) 100 | 100 100 100 Level 1 . | . . . Level 2 . | . . . Level 3 . | . . . Level 4 . | . . . Level 5 . | . . . High Security . | . . . Max Security . | . . . Squads Dispatched 2 | . . 2 Investigation . | . . . Extermination . | . . . Reinforcement 2 | . . 2 Assault . | . . . Garrison . | . . . Intercept . | . . . Searches Triggered . | . . . Construction Impeded 1 | . . 1 Haulers Reinforced . | . . . Active Scanning Responses . | . . . Cargo Convoy Interrupts . | . . . Stealth | -11 -10 -9 --------- Run | Yrd Mat Mat Distress Signals 1 | . . 1 Communications Jammed . | . . . Distress Signals . | . . . Times Spotted 18 | 1 3 14 Peak Tracking Total 6 | 1 3 6 Tactical Retreats . | . . . Traps | -11 -10 -9 ------- Run | Yrd Mat Mat Traps Triggered 1 | . 1 . Indirectly . | . . . Trap Hack Attempts . | . . . Triggered . | . . . Disarmed . | . . . Reprogrammed 1 | . 1 . Reused . | . . . Traps Extracted . | . . . Installed . | . . . Triggered . | . . . Machines | -11 -10 -9 ---------- Run | Yrd Mat Mat Machines Disabled 2 | . 2 . Max in Single Turn 2 | . 2 . Machines Repaired . | . . . Machines Dismantled . | . . . Machines Sabotaged . | . . . Overloaded Fab Kills . | . . . Hacking | -11 -10 -9 --------- Run | Yrd Mat Mat Machines Accessed 2 | . 2 . Terminals 2 | . 2 . Fabricators . | . . . Repair Stations . | . . . Recycling Units . | . . . Scanalyzers . | . . . Garrison Access . | . . . Total Hacks 8 | . 8 . Successful 3 | . 3 . Failed 5 | . 5 . Catastrophic 1 | . 1 . Database Lockouts . | . . . Manual 6 | . 6 . Terminals 8 | . 8 . Fabricators . | . . . Repair Stations . | . . . Recycling Units . | . . . Scanalyzers . | . . . Garrison Access . | . . . Terminal Hacks 3 | . 3 . Emergency Access Points 1 | . 1 . Alert Level 1 | . 1 . Reprogram Traps 1 | . 1 . Fabricator Hacks . | . . . Repair Station Hacks . | . . . Recycling Unit Hacks . | . . . Scanalyzer . | . . . Garrison Access Hacks . | . . . Unauthorized Hacks . | . . . Terminals . | . . . Fabricators . | . . . Repair Stations . | . . . Recycling Units . | . . . Scanalyzers . | . . . Garrison Access . | . . . Data Cores Recovered . | . . . Used . | . . . Hacking Detections 2 | . 2 . Full Trace Events 1 | . 1 . Feedback Events . | . . . Feedback Blocked . | . . . Robot Schematics Acquired . | . . . Robots Built . | . . . Authchips . | . . . Time . | . . . Total Robot Build Rating . | . . . Part Schematics Acquired . | . . . Parts Built . | . . . Authchips . | . . . Time . | . . . Total Part Build Rating . | . . . Parts Repaired . | . . . Time . | . . . Parts Recycled . | . . . Recycled Matter . | . . . Retrieved Matter . | . . . Retrieved Components . | . . . Parts Scanalyzed . | . . . Part Schematics Acquired . | . . . Parts Damaged . | . . . Bothacking | -11 -10 -9 ------------ Run | Yrd Mat Mat Used RIF Installer . | . . . Robots Hacked . | . . . Non-combat . | . . . Combat . | . . . Robot Hacks Applied . | . . . Relay Couplers Released . | . . . Fabnet Peak Effective % . | . . . Robots Rewired . | . . . Allies Hacked . | . . . Hacks Repelled . | . . . Allies | -11 -10 -9 -------- Run | Yrd Mat Mat Total Allies . | . . . Largest Group . | . . . Highest-Rated Group . | . . . Highest-Rated Ally . | . . . Total Orders . | . . . Ally Attacks . | . . . Total Damage . | . . . Kills . | . . . Allies Corrupted . | . . . Allies Melted . | . . . Intel | -11 -10 -9 ------- Run | Yrd Mat Mat Robot Analysis Total . | . . . Derelict Logs Recovered . | . . . Drone Launches . | . . . Drone Recoveries . | . . . Exploration | -11 -10 -9 ------------- Run | Yrd Mat Mat Turns Passed 799 | 151 159 489 Spaces Moved 448 | 107 249 92 Core 141 | 97 17 27 Treads . | . . . Legs 10 | 10 . . Wheels . | . . . Hover . | . . . Flight 297 | . 232 65 Fastest Speed 37 | 50 37 37 Average Speed 147 | 105 48 460 Slowest Speed 840 | 150 150 840 Overloaded Moves . | . . . Propulsion Burnouts . | . . . Robots Hopped . | . . . Cave-ins Triggered . | . . . Exploration Rate (%) 19 | 8 41 10 Regions Visited 2 Branch Regions . Pre-discovered Areas . | . . . Known Exits Taken . | . . . Unknown Exits Taken 2 | 1 1 . Scrap Searched . | . . . Spaces Dug . | . . . Terrain Destroyed 104 | . 35 69 Melee . | . . . Projectile . | . . . AOE 104 | . 35 69 Terrain Rammed . | . . . Walls Destroyed . | . . . Machines Disabled . | . . . Actions | -11 -10 -9 --------- Run | Yrd Mat Mat Total 557 | 131 281 145 Wait 31 | 1 6 24 Move 446 | 106 248 92 Hop . | . . . Pick Up 18 | 9 6 3 Fast Attach . | . . . Attach 15 | 7 3 5 Detach 3 | . 2 1 Swap . | . . . Drop 11 | . 8 3 Fire 33 | 8 8 17 Melee . | . . . Ram . | . . . Kick . | . . . Crush . | . . . Escape Stasis . | . . . Rewire . | . . . Trap . | . . . Miscellaneous . | . . . Route ------- -11/Scrapyard -10/Materials (discovered 2 exits: [*Mat] / [*Min]) -9/Materials History --------- Turn | Location | Event 2 | -11/Scrapyard | Met Revision 17 71 | -11/Scrapyard | Discovered new exit (range 8) 152 | -11/Scrapyard | Entered Materials 221 | -10/Materials | Discovered new exit (range 11) 247 | -10/Materials | Discovered new exit (range 15) 302 | -10/Materials | Build established: Mutant 311 | -10/Materials | Entered another Materials area 311 | -9/Materials | Evolved 2 slots: Power x1, Weapon x1 582 | -9/Materials | Lost 3 parts (1p2n) 783 | -9/Materials | Core integrity fell below 50% 794 | -9/Materials | Core integrity fell below 20% 800 | -9/Materials | Destroyed by G-34 Mercenary with Small Laser Last Messages --------------- U-05 Engineer lays Concrete. The unstable cave ceiling collapses. U-05 Engineer lays Concrete. R-06 Scavenger collects Terrain Scan Processor. U-05 Engineer lays Concrete. R-06 Scavenger collects Flight Unit. U-05 Engineer builds a Wall. A-02 Transporter destroyed. [Achievement: Loot Pinata] R-06 Scavenger destroyed. Mni. Grenade Launcher destroyed. U-05 Engineer lays Concrete. U-05 Engineer builds a Wall. U-05 Engineer lays Concrete. Heat Sink destroyed. U-05 Engineer builds a Wall. U-05 Engineer lays Concrete. U-05 Engineer destroyed. U-05 Engineer lays Concrete. [Achievement: First Step to Greatness] Map ----- +----------------------------------------------------+ | ?????????????????????????????????????????????????? | | ?????????????????????????????????????????????????? | | ?????????????????????????????????????????????????? | | ?????????????????????????????????????????????????? | | ?????????????????????????????????????????????????? | | ?????????????????????????????????????????????????? | | ?????????????????????????????????????????????????? | | ?????????????????????????????????????????????????? | | ?????????????????????????????????????????????????? | | ?????????????????????????????????????????????????? | | ?????????????????????????? ??????????????????????? | | ??????????????????????????g??????????????????????? | | ???????????????????#####??r??????????????????????? | | ??????????????????##!!!!## #?????????????????????? | | ??????????????????#! !# #?????????????????????? | | ??????????????????? #g#?????????????????????? | | ???????????????????# # #??######?????????????? | | ???????????????????# #??? #?????????????? | | ???????????????????# ?? #?????????????? | | ???????????????????# ##? #?????????????? | | ????????????######## u [g # #?????????????? | | ??????????? =]% # #?????????????? | | ??????????? a =gg] ? ??????????????? | | ?????????? =%!* #?##+##??????????????? | | ?????????? ! ### #######????????? | | ?????????? * =@ + #????? | | ?????????????# ==% g%! ### ## """ ???????? | | ?????????????# u %########?## ##????? ????????? | | ???????????? + ####??????# #?????" ????????? | | ???????????? # ####????????????# ###?? ??????? | | ???????????????????????????????# # """ #????? | | ???????????????????????????????# + """ #????? | | ???????????????????????????????# # """ ?????? | | ?????????????????????????????### # ?????????? | | ?????????????????????????????# # ##????????????? | | ????????????????????????????## # ##????????????? | | ???????????????????????????## #% # ????????????? | | ???????????????????????????# # ###???????????? | | ???????????????????????????# # # #???????????? | | ????????????????????????????# #% *# #???????????? | | ????????????????????????????# #= # #???????????? | | ????????????????????????????## # # #???????????? | | ?????????????????????????????# # ###???????????? | | ?????????????????????????????# # # #???????????? | | ?????????????????????????????# # ###???????????? | | ?????????????????????????????# # #????????????? | | ?????????????????????????????### #????????????? | | ?????????????????????????????# # #????????????? | | ?????????????????????????????### ##????????????? | | ???????????????????????????????# ##????????????? | +----------------------------------------------------+ Best States ------------- Heat Dissipation 38 Energy Generation 10 Energy Capacity 125 Matter Stores 300 Matter Capacity 300 Sight Range 16 Terrain Scan Range 16 Terrain Scan Density 10 Evasion (%) 62 Item Schematics ----------------- None Robot Schematics ------------------ None Fabricated ------------ Nothing Alien Tech Used ----------------- None Achievements -------------- First Step to Greatness Loot Pinata Uninvited Guest Challenges ------------ None Game ------ Seed CloakSegregatorCleaver Manual? 0 Play Time 00:23:53 Cumulative 0.3 hours Start 2024.09.28 @ 12:36:47 End 2024.09.28 @ 13:04:12 Sessions 1 Manual Loads 0 Difficulty Rogue Special Mode None Game No. 1 Rogue 1 Adventurer 0 Explorer 0 Win Type - Total 0 Types 0/0/0/0/0/0/0/0/0 Lore% 0 Gallery% 0 Achievement% 1 Wizard Run 0 Options --------- Layout 1 ASCII 0 Keyboard 0 Movement Numpad Keybinds 0 Fullscreen 1 Font 24/Smallcaps Map View 50x35 Zoom Use 0% Tactical HUD 0 Map Filters NONE Filters NONE Steam 1 RUN: 4be9e11c-3052-48f5-a894-b267d37944aa